fUSD/lending_fUSD_20240205
["ID","MTS","AMOUNT","RATE_DAILY","PERIOD"]
[313330397,1707161479599,-500.0,0.00048219,31]
[313330398,1707161479609,-2424.94,0.00048219,31]
[313330399,1707161479620,-1147.57,0.00048219,31]
[313330400,1707161479629,-719.89,0.00048219,31]
[313330401,1707161479639,-872.38,0.00048219,31]
[313330402,1707161479649,-500.0,0.00048219,31]
[313330403,1707161479659,-500.0,0.00048219,31]
[313330404,1707161479669,-3479.72,0.00048219,31]
[313330405,1707161479679,-524.2,0.00048219,31]
[313330406,1707161479690,-752.35,0.00048219,31]
[313330407,1707161479700,-500.0,0.00048219,31]
[313330408,1707161479709,-1792.12,0.00048219,7]
[313330409,1707161479719,-614.92,0.00048219,31]
[313330410,1707161479728,-689.61,0.00048219,31]
[313330411,1707161479738,-663.67,0.00048219,31]
[313330412,1707161479750,-1447.39,0.00048219,31]
[313330413,1707161479760,-500.0,0.00048219,31]
[313330414,1707161479769,-1389.3,0.00048219,31]
[313330415,1707161479779,-2445.56,0.00048219,31]
[313330416,1707161479788,-2095.64,0.00048219,31]
[313330417,1707161479798,-500.0,0.00048219,31]
[313330418,1707161479808,-1082.37,0.00048219,31]
[313330419,1707161479817,-2824.19,0.00048219,31]
[313330420,1707161479827,-1032.35,0.00048219,31]
[313330421,1707161479836,-903.41,0.00048219,31]
[313330422,1707161479846,-4354.94,0.00048219,31]
[313330423,1707161479855,-668.9,0.00048219,31]
[313330424,1707161479864,-607.08,0.00048219,31]
[313330425,1707161479874,-996.39,0.00048219,31]
[313330426,1707161479883,-500.0,0.00048219,31]
[313330427,1707161479893,-568.52,0.00048219,31]
[313330428,1707161479903,-559.60291384,0.00048219,31]
[313330429,1707161479912,-2415.07,0.00048219,31]
[313330430,1707161479921,-1484.19,0.00048219,31]
[313330431,1707161479930,-831.07,0.00048219,31]
[313330432,1707161479939,-543.21,0.00048219,31]
[313330433,1707161479949,-3180.88,0.00048219,31]
[313330434,1707161479958,-784.02,0.00048219,31]
[313330435,1707161479967,-1184.54,0.00048219,31]
[313330436,1707161479980,-546.47656312,0.00048219,31]
[313330437,1707161479990,-520.58,0.00048219,31]
[313330438,1707161480003,-1320.35,0.00048219,31]
[313330439,1707161480018,-500.0,0.00048219,31]
[313330440,1707161480029,-580.1,0.00048219,31]
[313330441,1707161480039,-727.02,0.00048219,31]
[313330442,1707161480049,-500.0,0.00048219,31]
[313330443,1707161480059,-648.1,0.00048219,31]
[313330444,1707161480068,-9649.71,0.00048219,31]
[313330445,1707161480078,-4246.7,0.00048219,31]
[313330446,1707161480089,-575.28,0.00048219,31]
[313330447,1707161480101,-5144.37,0.00048219,31]
[313330448,1707161480111,-531.93,0.00048219,31]
[313330449,1707161480121,-1687.02,0.00048219,31]
[313330450,1707161480131,-699.82,0.00048219,31]
[313330451,1707161480141,-828.59,0.00048219,31]
[313330452,1707161480150,-899.71,0.00048219,31]
[313330453,1707161480161,-701.7,0.00048219,31]
[313330454,1707161480170,-500.0,0.00048219,31]
[313330455,1707161480181,-500.0,0.00048219,31]
[313330456,1707161480191,-1300.69,0.00048219,31]
[313330457,1707161480201,-830.8,0.00048219,31]
[313330458,1707161480212,-530.48,0.00048219,31]
[313330459,1707161480222,-500.0,0.00048219,31]
[313330460,1707161480232,-500.0,0.00048219,2]
[313330461,1707161480242,-1935.78,0.00048219,31]
[313330462,1707161480253,-2018.2,0.00048219,31]
[313330463,1707161480263,-792.37,0.00048219,31]
[313330464,1707161480272,-1268.7,0.00048219,31]
[313330465,1707161480283,-610.86,0.00048219,31]
[313330466,1707161480292,-481.48656657,0.00048219,31]
[313330467,1707161480302,-500.0,0.00048219,31]
[313330468,1707161480311,-775.4,0.00048219,31]
[313330469,1707161480321,-650.59,0.00048219,31]
[313330470,1707161480331,-1038.49,0.00048219,31]
[313330471,1707161480340,-917.32,0.00048219,31]
[313330472,1707161480350,-609.62,0.00048219,31]
[313330473,1707161480360,-670.92,0.00048219,31]
[313330474,1707161480369,-1314.85,0.00048219,5]
[313330475,1707161480378,-1809.16,0.00048219,31]
[313330476,1707161480388,-1573.94,0.00048219,31]
[313330477,1707161480397,-834.46,0.00048219,31]
[313330478,1707161480407,-1499.56,0.00048219,31]
[313330479,1707161480416,-1580.41,0.00048219,31]
[313330480,1707161480426,-500.0,0.00048219,31]
[313330481,1707161480435,-500.0,0.00048219,30]
[313330482,1707161480445,-418.57082717,0.00048219,31]
[313330483,1707161480454,-1788.86,0.00048219,31]
[313330484,1707161480463,-665.49,0.00048219,31]
[313330485,1707161480473,-249.77473257,0.00048219,2]
[313330486,1707161480483,-341.73399691,0.00048219,31]
[313330487,1707161480492,-500.0,0.00048219,31]
[313330488,1707161480502,-6953.52,0.00048219,31]
[313330489,1707161480512,-594.23,0.00048219,31]
[313330490,1707161480521,-520.07323288,0.00048219,31]
[313330491,1707161480531,-1787.48,0.00048219,31]
[313330492,1707161480540,-626.24,0.00048219,31]
[313330493,1707161480550,-643.79,0.00048219,31]
[313330494,1707161480559,-1058.6,0.00048219,5]
[313330495,1707161480568,-12499.48,0.00048219,31]
[313330496,1707161480577,-1008.11,0.00048219,31]
[313330497,1707161480586,-151.0,0.00048278,2]
[313330498,1707161480596,-455.0,0.000483,38]
[313330499,1707161480605,-346.85097176,0.00048329,120]
[313330500,1707161480614,-3000.0,0.00048341,60]
[313330501,1707161480624,-3000.0,0.00048341,90]
[313330502,1707161480633,-3970.23967026,0.00048341,120]
[313330503,1707161480643,-331.82563408,0.00048353,8]
[313330504,1707161480652,-242.85775935,0.00048353,8]
[313330505,1707161480662,-169.36,0.00048411,120]
[313330506,1707161480672,-1479.05886786,0.00048425,30]
[313330507,1707161480681,-161.66,0.00048493,120]
[313330508,1707161480690,-244.98848671,0.00048508,30]
[313330509,1707161480700,-7077.0,0.00048556,30]
[313330510,1707161480710,-399.0,0.000486,30]
[313330511,1707161480719,-369.0,0.000486,2]
[313330512,1707161480729,-346.85097176,0.00048603,120]
[313330513,1707161480738,-254.60529105,0.00048653,30]
[313330514,1707161480749,-267.0,0.00048679,28]
[313330515,1707161480759,-1697.0,0.000487,117]
[313330516,1707161480768,-500.0,0.00048767,31]
[313330517,1707161480777,-579.22,0.00048767,31]
[313330518,1707161480787,-500.0,0.00048767,31]
[313330519,1707161480797,-524.88,0.00048767,31]
[313330520,1707161480806,-907.38,0.00048767,31]
[313330521,1707161480816,-793.66,0.00048767,31]
[313330522,1707161480825,-828.69,0.00048767,2]
[313330523,1707161480936,-760.42,0.00048767,31]
[313330524,1707161480946,-376.57072029,0.00048767,31]
[313330525,1707161480955,-500.0,0.00048767,31]
[313330526,1707161480965,-185.4557374,0.00048767,31]
[313330527,1707161480975,-500.0,0.00048767,2]
[313330528,1707161480984,-1171.91,0.00048767,31]
[313330529,1707161480993,-500.0,0.00048767,31]
[313330530,1707161481004,-1193.87,0.00048767,31]
[313330531,1707161481014,-579.7,0.00048767,31]
[313330532,1707161481023,-1047.76,0.00048767,31]
[313330533,1707161481032,-1195.13,0.00048767,31]
[313330534,1707161481041,-968.9,0.00048767,31]
[313330535,1707161481051,-500.0,0.00048767,31]
[313330536,1707161481060,-500.0,0.00048767,2]
[313330537,1707161481070,-928.39,0.00048767,31]
[313330538,1707161481079,-898.8,0.00048767,31]
[313330539,1707161481090,-1227.72,0.00048767,31]
[313330540,1707161481100,-259.90295614,0.00048767,31]
[313330541,1707161481110,-961.96,0.00048767,31]
[313330542,1707161481120,-856.15,0.00048767,31]
[313330543,1707161481135,-500.0,0.00048767,31]
[313330544,1707161481145,-610.16,0.00048767,31]
[313330545,1707161481155,-500.0,0.00048767,31]
[313330546,1707161481165,-4208.35,0.00048767,31]
[313330547,1707161481175,-500.0,0.00048767,31]
[313330548,1707161481187,-500.0,0.00048767,31]
[313330549,1707161481198,-2424.94,0.00048767,31]
[313330550,1707161481207,-1147.57,0.00048767,31]
[313330551,1707161481217,-719.89,0.00048767,31]
[313330552,1707161481227,-872.38,0.00048767,31]
[313330553,1707161481237,-500.0,0.00048767,31]
[313330554,1707161481246,-500.0,0.00048767,31]
[313330555,1707161481257,-3479.72,0.00048767,31]
[313330556,1707161481267,-524.2,0.00048767,31]
[313330557,1707161481276,-752.35,0.00048767,31]
[313330558,1707161481286,-500.0,0.00048767,31]
[313330559,1707161481296,-1792.12,0.00048767,7]
[313330560,1707161481310,-689.61,0.00048767,31]
[313330561,1707161481320,-614.92,0.00048767,31]
[313330562,1707161481333,-663.67,0.00048767,31]
[313330563,1707161481344,-1447.39,0.00048767,31]
[313330564,1707161481355,-500.0,0.00048767,31]
[313330565,1707161481364,-1389.3,0.00048767,31]
[313330566,1707161481374,-2445.56,0.00048767,31]
[313330567,1707161481384,-2095.64,0.00048767,31]
[313330568,1707161481394,-500.0,0.00048767,31]
[313330569,1707161481404,-1082.37,0.00048767,31]
[313330570,1707161481414,-2824.19,0.00048767,31]
[313330571,1707161481424,-1032.35,0.00048767,31]
[313330572,1707161481433,-903.41,0.00048767,31]
[313330573,1707161481442,-4354.94,0.00048767,31]
[313330574,1707161481453,-668.9,0.00048767,31]
[313330575,1707161481464,-607.08,0.00048767,31]
[313330576,1707161481473,-996.39,0.00048767,31]
[313330577,1707161481483,-500.0,0.00048767,31]
[313330578,1707161481493,-568.52,0.00048767,31]
[313330579,1707161481505,-2415.07,0.00048767,31]
[313330580,1707161481514,-1484.19,0.00048767,31]
[313330581,1707161481524,-831.07,0.00048767,31]
[313330582,1707161481534,-543.21,0.00048767,31]
[313330583,1707161481543,-3180.88,0.00048767,31]
[313330584,1707161481553,-784.02,0.00048767,31]
[313330585,1707161481563,-1184.54,0.00048767,31]
[313330586,1707161481574,-520.58,0.00048767,31]
[313330587,1707161481583,-1320.35,0.00048767,31]
[313330588,1707161481594,-500.0,0.00048767,31]
[313330589,1707161481603,-580.1,0.00048767,31]
[313330590,1707161481613,-727.02,0.00048767,31]
[313330591,1707161481623,-500.0,0.00048767,31]
[313330592,1707161481632,-648.1,0.00048767,31]
[313330593,1707161481643,-9649.71,0.00048767,31]
[313330594,1707161481654,-4246.7,0.00048767,31]
[313330595,1707161481679,-575.28,0.00048767,31]
[313330596,1707161481696,-5144.37,0.00048767,31]
[313330597,1707161481715,-531.93,0.00048767,31]
[313330598,1707161481736,-1687.02,0.00048767,31]
[313330599,1707161481753,-699.82,0.00048767,31]
[313330600,1707161481769,-828.59,0.00048767,31]
[313330601,1707161481787,-899.71,0.00048767,31]
[313330602,1707161481805,-701.7,0.00048767,31]
[313330603,1707161481824,-500.0,0.00048767,31]
[313330604,1707161481841,-500.0,0.00048767,31]
[313330605,1707161481861,-1300.69,0.00048767,31]
[313330606,1707161481878,-830.8,0.00048767,31]
[313330607,1707161481892,-530.48,0.00048767,31]
[313330608,1707161481908,-500.0,0.00048767,31]
[313330609,1707161481927,-500.0,0.00048767,2]
[313330610,1707161481943,-1935.78,0.00048767,31]
[313330611,1707161481959,-2018.2,0.00048767,31]
[313330612,1707161481975,-792.37,0.00048767,31]
[313330613,1707161481991,-1268.7,0.00048767,31]
[313330614,1707161482008,-610.86,0.00048767,31]
[313330615,1707161482023,-500.0,0.00048767,31]
[313330616,1707161482037,-775.4,0.00048767,31]
[313330617,1707161482052,-650.59,0.00048767,31]
[313330618,1707161482067,-1038.49,0.00048767,31]
[313330619,1707161482082,-917.32,0.00048767,31]
[313330620,1707161482098,-609.62,0.00048767,31]
[313330621,1707161482113,-670.92,0.00048767,31]
[313330622,1707161482128,-1314.85,0.00048767,5]
[313330623,1707161482144,-1809.16,0.00048767,31]
[313330624,1707161482158,-1573.94,0.00048767,31]
[313330625,1707161482174,-834.46,0.00048767,31]
[313330626,1707161482190,-1499.56,0.00048767,31]
[313330627,1707161482203,-1580.41,0.00048767,31]
[313330628,1707161482218,-500.0,0.00048767,31]
[313330629,1707161482233,-500.0,0.00048767,30]
[313330630,1707161482251,-1788.86,0.00048767,31]
[313330631,1707161482268,-665.49,0.00048767,31]
[313330632,1707161482282,-500.0,0.00048767,31]
[313330633,1707161482296,-6953.52,0.00048767,31]
[313330634,1707161482311,-594.23,0.00048767,31]
[313330635,1707161482326,-1787.48,0.00048767,31]
[313330636,1707161482340,-626.24,0.00048767,31]
[313330637,1707161482355,-643.79,0.00048767,31]
[313330638,1707161482370,-1058.6,0.00048767,5]
[313330639,1707161482386,-12499.48,0.00048767,31]
[313330640,1707161482400,-1000.26,0.000488,60]
[313330641,1707161482415,-455.0,0.000488,39]
[313330642,1707161482429,-1000.0,0.000488,2]
[313330643,1707161482444,-153.14,0.000488,6]
[313330644,1707161482458,-153.14,0.000488,6]
[313330645,1707161482473,-153.14,0.000488,6]
[313330646,1707161482487,-153.14,0.000488,6]
[313330647,1707161482503,-153.14,0.000488,6]
[313330648,1707161482517,-153.14,0.000488,6]
[313330649,1707161482531,-172.43294226,0.00048813,30]
[313330650,1707161482546,-351.82020176,0.00048813,30]
[313330651,1707161482561,-280.02886873,0.00048813,30]
[313330652,1707161482580,-161.66,0.00048849,120]
[313330653,1707161482594,-346.85097176,0.00048877,120]
[313330654,1707161482609,-2418.971379,0.0004888,2]
[313330655,1707161482626,-500.00008041,0.000489,120]
[313330656,1707161482641,-400.0,0.0004897,3]
[313330657,1707161482656,-514.10207809,0.0004897,3]
[313330658,1707161482671,-20514.4794923,0.00048979,120]
[313330659,1707161482686,-9558.48871711,0.00048979,120]
[313330660,1707161482701,-127421.25870336,0.0004898,10]
[313330661,1707161482715,-700.36441822,0.00048982,30]
[313330662,1707161482730,-151.0,0.00048986,30]
[313330663,1707161482750,-151.0,0.00048986,30]
[313330664,1707161482765,-151.0,0.00048986,30]
[313330665,1707161482780,-151.0,0.00048986,30]
[313330666,1707161482797,-151.0,0.00048986,30]
[313330667,1707161482949,-151.0,0.00048986,30]
[313330668,1707161482961,-151.0,0.00048986,30]
[313330669,1707161482971,-200.0,0.00048987,6]
[313330670,1707161482980,-100000.0,0.00049,39]
[313330671,1707161482989,-392.56321648,0.00049,120]
[313330672,1707161483000,-1543.0,0.00049,120]
[313330673,1707161483009,-2820.86052531,0.00049,120]
[313330674,1707161483019,-2313.14570487,0.00049,2]
[313330675,1707161483028,-6439.59,0.00049,7]
[313330676,1707161483038,-10500.0,0.00049,10]
[313330677,1707161483047,-503.10767156,0.00049,4]
[313330678,1707161483056,-327.60368618,0.00049,30]
[313330679,1707161483066,-302.44514064,0.00049,30]
[313330680,1707161483076,-1000.0,0.00049,30]
[313330681,1707161483087,-231.20392121,0.00049,30]
[313330682,1707161483097,-1366.31726098,0.00049,30]
[313330683,1707161483110,-258.09385091,0.00049,30]
[313330684,1707161483119,-189.98284841,0.00049,30]
[313330685,1707161483128,-170.23473635,0.00049,30]
[313330686,1707161483138,-912.13504934,0.00049,30]
[313330687,1707161483148,-296.57057049,0.00049,30]
[313330688,1707161483157,-1194.39870285,0.00049,30]
[313330689,1707161483167,-551.76195375,0.00049,30]
[313330690,1707161483176,-404.86576966,0.00049,30]
[313330691,1707161483185,-307.9910742,0.00049,30]
[313330692,1707161483195,-390.6271879,0.00049,30]
[313330693,1707161483204,-241.30645176,0.00049,30]
[313330694,1707161483213,-323.98506594,0.00049,30]
[313330695,1707161483223,-403.41845841,0.00049,30]
[313330696,1707161483232,-188.04089933,0.00049,30]
[313330697,1707161483241,-1634.62937512,0.00049,30]
[313330698,1707161483251,-12000.0,0.00049,120]
[313330699,1707161483260,-1377.24619259,0.00049,120]
[313330700,1707161483269,-500.0,0.00049,29]
[313330701,1707161483279,-5241.0,0.00049,45]
[313330702,1707161483289,-12586.0,0.00049,45]
[313330703,1707161483298,-169.36,0.00049014,120]
[313330704,1707161483308,-7077.0,0.00049037,30]
[313330705,1707161483317,-1112.2627507,0.0004904,14]
[313330706,1707161483327,-1112.2627507,0.0004904,14]
[313330707,1707161483336,-1112.2627507,0.0004904,14]
[313330708,1707161483345,-1112.2627507,0.0004904,14]
[313330709,1707161483355,-1112.2627507,0.0004904,14]
[313330710,1707161483365,-1112.2627507,0.0004904,14]
[313330711,1707161483375,-1112.2627507,0.0004904,14]
[313330712,1707161483384,-1112.2627507,0.0004904,14]
[313330713,1707161483393,-1112.2627507,0.0004904,14]
[313330714,1707161483402,-1112.2627507,0.0004904,14]
[313330715,1707161483412,-1112.2627507,0.0004904,14]
[313330716,1707161483421,-1112.2627507,0.0004904,14]
[313330717,1707161483430,-1112.2627507,0.0004904,14]
[313330718,1707161483439,-1112.2627507,0.0004904,14]
[313330719,1707161483449,-1112.2627507,0.0004904,14]
[313330720,1707161483458,-1112.2627507,0.0004904,14]
[313330721,1707161483467,-1112.2627507,0.0004904,14]
[313330722,1707161483476,-1112.2627507,0.0004904,14]
[313330723,1707161483485,-1112.2627507,0.0004904,14]
[313330724,1707161483495,-1112.26,0.0004904,14]
[313330725,1707161483505,-526.69743509,0.0004904,14]
[313330726,1707161483514,-526.69743509,0.0004904,14]
[313330727,1707161483524,-526.69743509,0.0004904,14]
[313330728,1707161483533,-526.69743509,0.0004904,14]
[313330729,1707161483542,-526.69743509,0.0004904,14]
[313330730,1707161483551,-526.69743509,0.0004904,14]
[313330731,1707161483561,-526.69743509,0.0004904,14]
[313330732,1707161483570,-526.69743509,0.0004904,14]
[313330733,1707161483579,-526.69743509,0.0004904,14]
[313330734,1707161483589,-526.69743509,0.0004904,14]
[313330735,1707161483598,-526.69743509,0.0004904,14]
[313330736,1707161483607,-526.69743509,0.0004904,14]
[313330737,1707161483616,-526.69743509,0.0004904,14]
[313330738,1707161483626,-526.69743509,0.0004904,14]
[313330739,1707161483635,-526.69743509,0.0004904,14]
[313330740,1707161483644,-526.69743509,0.0004904,14]
[313330741,1707161483653,-526.69743509,0.0004904,14]
[313330742,1707161483662,-526.69743509,0.0004904,14]
[313330743,1707161483671,-526.69743509,0.0004904,14]
[313330744,1707161483680,-526.69,0.0004904,14]
[313330745,1707161483689,-762.34587034,0.0004904,14]
[313330746,1707161483698,-762.34587034,0.0004904,14]
[313330747,1707161483707,-762.34587034,0.0004904,14]
[313330748,1707161483716,-762.34587034,0.0004904,14]
[313330749,1707161483725,-762.34587034,0.0004904,14]
[313330750,1707161483734,-762.34587034,0.0004904,14]
[313330751,1707161483744,-762.34587034,0.0004904,14]
[313330752,1707161483753,-762.34587034,0.0004904,14]
[313330753,1707161483762,-762.34587034,0.0004904,14]
[313330754,1707161483772,-762.34587034,0.0004904,14]
[313330755,1707161483781,-762.34587034,0.0004904,14]
[313330756,1707161483790,-762.34587034,0.0004904,14]
[313330757,1707161483798,-762.34587034,0.0004904,14]
[313330758,1707161483807,-762.34587034,0.0004904,14]
[313330759,1707161483816,-762.34587034,0.0004904,14]
[313330760,1707161483826,-762.34587034,0.0004904,14]
[313330761,1707161483835,-762.34587034,0.0004904,14]
[313330762,1707161483844,-762.34587034,0.0004904,14]
[313330763,1707161483853,-762.34587034,0.0004904,14]
[313330764,1707161483862,-762.34,0.0004904,14]
[313330765,1707161483872,-926.23415636,0.0004904,14]
[313330766,1707161483881,-926.23415636,0.0004904,14]
[313330767,1707161483890,-926.23415636,0.0004904,14]
[313330768,1707161483899,-926.23415636,0.0004904,14]
[313330769,1707161483908,-926.23415636,0.0004904,14]
[313330770,1707161483917,-926.23415636,0.0004904,14]
[313330771,1707161483926,-926.23415636,0.0004904,14]
[313330772,1707161483936,-926.23415636,0.0004904,14]
[313330773,1707161483944,-926.23415636,0.0004904,14]
[313330774,1707161483954,-926.23415636,0.0004904,14]
[313330775,1707161483963,-926.23415636,0.0004904,14]
[313330776,1707161483972,-926.23415636,0.0004904,14]
[313330777,1707161483981,-926.23415636,0.0004904,14]
[313330778,1707161483990,-926.23415636,0.0004904,14]
[313330779,1707161484000,-926.23415636,0.0004904,14]
[313330780,1707161484009,-926.23415636,0.0004904,14]
[313330781,1707161484018,-926.23415636,0.0004904,14]
[313330782,1707161484027,-926.23415636,0.0004904,14]
[313330783,1707161484036,-926.23415636,0.0004904,14]
[313330784,1707161484045,-926.23,0.0004904,14]
[313330785,1707161484053,-779.57444689,0.0004904,14]
[313330786,1707161484062,-779.57444689,0.0004904,14]
[313330787,1707161484072,-779.57444689,0.0004904,14]
[313330788,1707161484081,-779.57444689,0.0004904,14]
[313330789,1707161484090,-779.57444689,0.0004904,14]
[313330790,1707161484102,-779.57444689,0.0004904,14]
[313330791,1707161484111,-779.57444689,0.0004904,14]
[313330792,1707161484120,-779.57444689,0.0004904,14]
[313330793,1707161484129,-779.57444689,0.0004904,14]
[313330794,1707161484139,-779.57444689,0.0004904,14]
[313330795,1707161484148,-779.57444689,0.0004904,14]
[313330796,1707161484157,-779.57444689,0.0004904,14]
[313330797,1707161484166,-779.57444689,0.0004904,14]
[313330798,1707161484177,-779.57444689,0.0004904,14]
[313330799,1707161484186,-779.57444689,0.0004904,14]
[313330800,1707161484195,-779.57444689,0.0004904,14]
[313330801,1707161484204,-779.57444689,0.0004904,14]
[313330802,1707161484214,-779.57444689,0.0004904,14]
[313330803,1707161484223,-779.57444689,0.0004904,14]
[313330804,1707161484232,-779.57,0.0004904,14]
[313330805,1707161484241,-12000.0,0.0004904,120]
[313330806,1707161484251,-500.0,0.00049041,75]
[313330807,1707161484261,-12000.0,0.0004908,120]
[313330808,1707161484270,-302.0,0.00049089,4]
[313330809,1707161484280,-500.0,0.000491,29]
[313330810,1707161484289,-12000.0,0.0004912,120]
[313330811,1707161484298,-206.0,0.00049147,42]
[313330812,1707161484308,-346.85097176,0.00049151,120]
[313330813,1707161484317,-12000.0,0.0004916,120]
[313330814,1707161484326,-161.66,0.00049178,120]
[313330815,1707161484335,-9162.67,0.000492,120]
[313330816,1707161484344,-500.0,0.000492,29]
[313330817,1707161484353,-331.82563408,0.00049243,9]
[313330818,1707161484363,-242.85775935,0.00049243,9]
[313330819,1707161484373,-395.38392568,0.00049247,10]
[313330820,1707161484382,-455.0,0.000493,39]
[313330821,1707161484391,-500.0,0.000493,29]
[313330822,1707161484400,-200.0,0.00049315,7]
[313330823,1707161484409,-200.0,0.00049315,7]
[313330824,1707161484418,-200.0,0.00049315,7]
[313330825,1707161484428,-200.0,0.00049315,7]
[313330826,1707161484437,-200.0,0.00049315,7]
[313330827,1707161484446,-322.77906384,0.00049315,7]
[313330828,1707161484455,-500.0,0.00049315,31]
[313330829,1707161484464,-579.22,0.00049315,31]
[313330830,1707161484473,-524.88,0.00049315,31]
[313330831,1707161484482,-500.0,0.00049315,31]
[313330832,1707161484492,-907.38,0.00049315,31]
[313330833,1707161484502,-500.0,0.00049315,120]
[313330834,1707161484511,-793.66,0.00049315,31]
[313330835,1707161484520,-600.0,0.00049315,31]
[313330836,1707161484529,-828.69,0.00049315,2]
[313330837,1707161484538,-760.42,0.00049315,31]
[313330838,1707161484547,-500.0,0.00049315,31]
[313330839,1707161484556,-500.0,0.00049315,2]
[313330840,1707161484565,-1171.91,0.00049315,31]
[313330841,1707161484575,-500.0,0.00049315,31]
[313330842,1707161484584,-1193.87,0.00049315,31]
[313330843,1707161484593,-579.7,0.00049315,31]
[313330844,1707161484602,-1000.0,0.00049315,7]
[313330845,1707161484611,-173.44984844,0.00049315,7]
[313330846,1707161484620,-1047.76,0.00049315,31]
[313330847,1707161484629,-1195.13,0.00049315,31]
[313330848,1707161484638,-968.9,0.00049315,31]
[313330849,1707161484647,-343.29739897,0.00049315,31]
[313330850,1707161484657,-500.0,0.00049315,2]
[313330851,1707161484666,-500.0,0.00049315,7]
[313330852,1707161484675,-928.39,0.00049315,31]
[313330853,1707161484685,-898.8,0.00049315,31]
[313330854,1707161484694,-1227.72,0.00049315,31]
[313330855,1707161484703,-961.96,0.00049315,31]
[313330856,1707161484713,-856.15,0.00049315,31]
[313330857,1707161484723,-610.16,0.00049315,31]
[313330858,1707161484732,-500.0,0.00049315,31]
[313330859,1707161484741,-4208.35,0.00049315,31]
[313330860,1707161484752,-500.0,0.00049315,31]
[313330861,1707161484762,-500.0,0.00049315,31]
[313330862,1707161484771,-2424.94,0.00049315,31]
[313330863,1707161484780,-1147.57,0.00049315,31]
[313330864,1707161484790,-719.89,0.00049315,31]
[313330865,1707161484799,-872.38,0.00049315,31]
[313330866,1707161484808,-500.0,0.00049315,31]
[313330867,1707161484818,-500.0,0.00049315,31]
[313330868,1707161484827,-3479.72,0.00049315,31]
[313330869,1707161484837,-524.2,0.00049315,31]
[313330870,1707161484846,-752.35,0.00049315,31]
[313330871,1707161484856,-500.0,0.00049315,31]
[313330872,1707161484865,-1792.12,0.00049315,7]
[313330873,1707161484874,-689.61,0.00049315,31]
[313330874,1707161484987,-614.92,0.00049315,31]
[313330875,1707161484997,-663.67,0.00049315,31]
[313330876,1707161485008,-1447.39,0.00049315,31]
[313330877,1707161485018,-500.0,0.00049315,31]
[313330878,1707161485027,-1389.3,0.00049315,31]
[313330879,1707161485037,-2445.56,0.00049315,31]
[313330880,1707161485047,-2095.64,0.00049315,31]
[313330881,1707161485055,-500.0,0.00049315,31]
[313330882,1707161485065,-1082.37,0.00049315,31]
[313330883,1707161485075,-2824.19,0.00049315,31]
[313330884,1707161485085,-1032.35,0.00049315,31]
[313330885,1707161485096,-903.41,0.00049315,31]
[313330886,1707161485107,-4354.94,0.00049315,31]
[313330887,1707161485117,-668.9,0.00049315,31]
[313330888,1707161485127,-607.08,0.00049315,31]
[313330889,1707161485136,-996.39,0.00049315,31]
[313330890,1707161485145,-500.0,0.00049315,31]
[313330891,1707161485154,-568.52,0.00049315,31]
[313330892,1707161485164,-2415.07,0.00049315,31]
[313330893,1707161485174,-1484.19,0.00049315,31]
[313330894,1707161485183,-831.07,0.00049315,31]
[313330895,1707161485192,-543.21,0.00049315,31]
[313330896,1707161485202,-3180.88,0.00049315,31]